bitfinex/quotes_BTCUSD_20220307
["timestamp","ask_amount","ask_price","bid_price","bid_amount"]
[1646673401434,0.064479,38790.0,38782.0,2.75894969]
[1646673401625,0.064479,38790.0,38783.0,0.01289]
[1646673402024,0.064479,38788.0,38783.0,0.01289]
[1646673402271,0.064475,38788.0,38783.0,0.01218452]
[1646673402469,0.17925247,38791.0,38783.0,0.01218452]
[1646673402868,0.17925247,38791.0,38786.0,0.21376573]
[1646673402869,0.05,38791.0,38786.0,0.21376573]
[1646673403270,0.00027597,38791.0,38786.0,0.21376573]
[1646673404270,0.05,38794.0,38789.0,0.05941043]
[1646673404470,0.00027598,38791.0,38789.0,0.14959043]
[1646673405069,0.00027598,38791.0,38789.0,0.37087824]
[1646673405270,0.064463,38796.0,38789.0,0.14959043]
[1646673405571,0.00027598,38792.0,38789.0,0.09018]
[1646673405769,0.00027598,38792.0,38786.0,0.21376573]
[1646673406322,0.06474398,38792.0,38786.0,0.44190168]
[1646673406522,0.064468,38792.0,38786.0,0.44190168]
[1646673406919,0.00029007,38791.0,38786.0,0.44190168]
[1646673407720,0.064468,38792.0,38786.0,0.34190168]
[1646673407921,0.11446793,38794.0,38786.0,0.34190168]
[1646673407922,0.05,38794.0,38791.0,0.06147404]
[1646673408123,0.05,38794.0,38792.0,0.3]
[1646673408323,0.00116002,38799.0,38791.0,0.06147404]
[1646673408621,0.00116002,38799.0,38791.0,0.36147404]
[1646673408821,0.17526802,38798.0,38787.0,0.41288]
[1646673409023,0.06446,38796.0,38787.0,0.41288]
[1646673409220,0.06446,38796.0,38787.0,0.46288]
[1646673410265,0.11446,38796.0,38787.0,0.46288]
[1646673410665,0.064472,38792.0,38787.0,0.41288]
[1646673410867,0.064472,38792.0,38787.0,0.01288]
[1646673411273,0.00028014,38793.0,38787.0,0.3]
[1646673411468,1.35258184,38800.0,38782.0,2.70894969]
[1646673411469,0.02577,38798.0,38782.0,2.70894969]
[1646673411669,0.27023602,38791.0,38783.0,0.3]
[1646673411866,0.064476,38790.0,38781.0,0.00028022]
[1646673412269,0.18291529,38789.0,38781.0,0.00028022]
[1646673412469,0.29739733,38789.0,38781.0,0.00028022]
[1646673412670,0.29739733,38789.0,38779.0,0.3]
[1646673412868,0.064487,38787.0,38778.0,0.17272512]
[1646673413268,0.064487,38787.0,38781.0,0.00028021]
[1646673413919,0.064487,38787.0,38784.0,0.20296492]
[1646673414323,0.29739129,38789.0,38784.0,0.20296492]
[1646673414719,0.29739129,38789.0,38781.0,0.00025885]
[1646673415119,0.29739129,38789.0,38778.0,0.25463895]
[1646673415320,0.29739129,38789.0,38781.0,0.00025886]
[1646673415920,0.5617536,38789.0,38781.0,0.00025886]
[1646673416321,0.5617536,38789.0,38780.0,0.17028086]
[1646673416520,0.5617536,38789.0,38781.0,0.30025886]
[1646673416721,0.31436231,38789.0,38782.0,0.0584752]
[1646673416926,0.05,38789.0,38782.0,0.0584752]
[1646673417166,0.05025879,38791.0,38786.0,0.207153]
[1646673417368,0.00025879,38791.0,38786.0,0.207153]
[1646673417567,0.05,38794.0,38786.0,0.207153]
[1646673417768,0.217975,38795.0,38786.0,0.40741056]
[1646673417966,0.1,38799.0,38786.0,0.40741056]
[1646673417967,0.00026088,38791.0,38786.0,0.40741056]
[1646673418167,0.00026088,38791.0,38781.0,0.00026095]
[1646673418370,0.02577,38789.0,38781.0,0.00026095]
[1646673418567,0.07337,38788.0,38781.0,0.00026095]
[1646673418767,0.07337,38787.0,38773.0,0.060332]
[1646673418969,0.0476,38786.0,38781.0,0.00026094]
[1646673419168,0.2172936,38785.0,38781.0,0.00026094]
[1646673419368,0.0476,38786.0,38781.0,0.00026094]
[1646673419369,0.05,38784.0,38781.0,0.00026094]
[1646673419673,0.064496,38784.0,38781.0,0.00026094]
[1646673419868,0.05,38783.0,38779.0,0.06196387]
[1646673420071,0.05,38783.0,38781.0,0.00026094]
[1646673420274,0.068496,38784.0,38781.0,0.00026094]
[1646673420473,0.19749499,38784.0,38781.0,0.00026094]
[1646673420921,0.05,38783.0,38781.0,0.00026094]
[1646673421122,0.05,38783.0,38776.0,0.39036546]
[1646673421423,0.05,38783.0,38777.0,0.05261821]
[1646673421424,0.25517522,38780.0,38777.0,0.05261821]
[1646673421621,0.05,38783.0,38782.0,0.24139821]
[1646673421823,0.29564261,38783.0,38782.0,0.24139821]
[1646673422028,0.94324261,38783.0,38782.0,0.24139821]
[1646673422227,0.94324261,38783.0,38773.0,0.010332]
[1646673422228,0.7869,38780.0,38773.0,0.010332]
[1646673422424,0.7869,38776.0,38773.0,0.010332]
[1646673422621,0.7869,38774.0,38773.0,0.010332]
[1646673422824,1.2345,38774.0,38773.0,0.010332]
[1646673423023,0.96027,38774.0,38767.0,0.001]
[1646673423224,0.06450874,38773.0,38767.0,0.32666251]
[1646673423425,0.52904372,38775.0,38773.0,0.010333]
[1646673423426,0.4,38775.0,38773.0,0.010333]
[1646673424021,0.1,38779.0,38773.0,0.010333]
[1646673424222,0.004,38775.0,38773.0,0.010333]
[1646673424423,0.133016,38775.0,38773.0,0.010333]
[1646673424880,0.133016,38775.0,38768.0,0.00025991]
[1646673424881,0.7869,38773.0,38768.0,0.00025991]
[1646673425075,0.7869,38770.0,38768.0,0.00025991]
[1646673425274,0.1,38769.0,38767.0,0.001]
[1646673425474,1.0369,38769.0,38767.0,0.001]
[1646673425673,0.3,38769.0,38767.0,0.001]
[1646673426074,0.15,38769.0,38767.0,0.001]
[1646673427379,0.45,38769.0,38767.0,0.001]
[1646673427775,0.15,38769.0,38767.0,0.001]
[1646673428177,0.153,38769.0,38767.0,0.001]
[1646673429126,0.053,38769.0,38767.0,0.001]
[1646673429329,0.003,38769.0,38767.0,0.001]
[1646673429529,0.0476,38771.0,38767.0,0.001]
[1646673429729,0.23403475,38770.0,38767.0,0.001]
[1646673429932,0.28403475,38770.0,38767.0,0.001]
[1646673430128,0.38403475,38770.0,38767.0,0.001]
[1646673430328,0.38403475,38770.0,38767.0,0.00127062]
[1646673430730,0.064519,38769.0,38767.0,0.00127062]
[1646673430930,5.998386,38769.0,38767.0,0.00127062]
[1646673431328,0.1,38768.0,38767.0,0.001]
[1646673432031,0.4,38768.0,38767.0,0.001]
[1646673432285,0.404,38768.0,38767.0,0.001]
[1646673432888,0.104,38768.0,38767.0,0.001]
[1646673433487,0.1,38768.0,38767.0,0.001]
[1646673434088,0.4,38768.0,38767.0,0.001]
[1646673434288,0.1,38768.0,38767.0,0.001]
[1646673437524,0.1,38768.0,38761.0,0.001]
[1646673437525,2.28662108,38766.0,38761.0,0.001]
[1646673437722,1.28422108,38765.0,38761.0,0.001]
[1646673437923,0.7869,38764.0,38761.0,0.001]
[1646673438122,0.0476,38763.0,38761.0,0.001]
[1646673438322,0.0476,38762.0,38761.0,0.001]
[1646673438720,0.0476,38762.0,38761.0,0.28904664]
[1646673438923,0.004,38766.0,38761.0,0.58904664]
[1646673439123,0.004,38766.0,38761.0,0.65354564]
[1646673439321,0.004,38766.0,38761.0,0.28904664]
[1646673439522,0.004,38766.0,38764.0,0.18469847]
[1646673439778,0.004,38766.0,38764.0,0.37557486]
[1646673440183,5.998386,38769.0,38764.0,0.37557486]
[1646673440580,5.998386,38769.0,38764.0,0.18469847]
[1646673440779,5.998386,38769.0,38762.0,0.00018376]
[1646673440980,5.998386,38769.0,38761.0,0.28904664]
[1646673440981,5.998386,38769.0,38761.0,0.33904664]
[1646673441181,5.998386,38769.0,38764.0,0.00018374]
[1646673442082,5.998386,38769.0,38762.0,0.394876]
[1646673442282,5.998386,38769.0,38764.0,0.00029584]
[1646673442283,5.999386,38769.0,38764.0,0.00029584]
[1646673443285,5.999386,38769.0,38762.0,0.394876]
[1646673443532,0.22042589,38768.0,38762.0,0.394876]
[1646673444132,6.048386,38769.0,38762.0,0.394876]
[1646673444832,6.048386,38769.0,38764.0,0.00028958]
[1646673445833,6.048386,38769.0,38762.0,0.394876]
[1646673446034,6.048386,38769.0,38764.0,0.00028958]
[1646673446233,6.049386,38769.0,38764.0,0.00028958]
[1646673447033,6.049386,38769.0,38762.0,0.18099042]
[1646673447273,6.049386,38769.0,38764.0,0.00028958]
[1646673447475,6.048386,38769.0,38764.0,0.00028958]
[1646673448274,6.050386,38769.0,38764.0,0.00027614]
[1646673448676,0.28957082,38768.0,38764.0,0.00027614]
[1646673448877,0.38957082,38768.0,38764.0,0.00027614]
[1646673449278,1.24099675,38768.0,38764.0,0.00027614]
[1646673449476,0.45409675,38768.0,38764.0,0.00027614]
[1646673449678,0.29358993,38768.0,38764.0,0.00027614]
[1646673449876,0.1,38768.0,38764.0,0.00027614]
[1646673450478,0.1,38768.0,38761.0,0.001]
[1646673450679,0.1,38768.0,38764.0,0.00027614]
[1646673451326,0.164518,38768.0,38764.0,0.00027614]
[1646673451724,5.65167681,38769.0,38761.0,0.19187532]
[1646673451923,0.0645178,38768.0,38765.0,0.78067469]
[1646673452323,0.005,38768.0,38765.0,0.78067469]
[1646673453525,5.70167681,38769.0,38765.0,0.78067469]
[1646673454324,5.70567681,38769.0,38765.0,0.78067469]
[1646673455170,0.23668892,38766.0,38765.0,0.78067469]
[1646673455375,0.30121492,38766.0,38765.0,0.78067469]
[1646673455574,1.08811492,38766.0,38765.0,0.78067469]
[1646673455776,0.45121492,38766.0,38765.0,0.78067469]
[1646673456473,0.45121492,38766.0,38761.0,0.001]
[1646673456677,0.7869,38762.0,38761.0,0.001]
[1646673457174,0.8369,38762.0,38761.0,0.001]
[1646673457476,0.9369,38762.0,38761.0,0.001]
[1646673457677,2.2869,38761.0,38757.0,0.001]
[1646673457879,2.2869,38761.0,38747.0,0.001]
[1646673457880,0.7869,38751.0,38747.0,0.001]
[1646673458075,0.7869,38751.0,38740.0,0.001]
[1646673458076,1.25,38746.0,38740.0,0.001]
[1646673458276,1.25,38746.0,38733.0,0.001]
[1646673458277,0.81267,38741.0,38733.0,0.001]
[1646673458545,0.81267,38741.0,38725.0,0.003]
[1646673458546,1.96267,38733.0,38725.0,0.003]
[1646673458744,1.96267,38733.0,38722.0,0.001]
[1646673458745,0.21335123,38725.0,38722.0,0.001]
[1646673458939,0.193796,38726.0,38722.0,0.001]
[1646673459141,0.0476,38725.0,38723.0,0.0001]
[1646673459538,1.61267,38723.0,38715.0,0.0022373]
[1646673459740,0.2690038,38720.0,38715.0,0.0022373]
[1646673459937,0.3336048,38720.0,38715.0,0.0022373]
[1646673460339,1.0599038,38720.0,38715.0,0.0022373]
[1646673460538,0.2730038,38720.0,38715.0,0.0022373]
[1646673460836,0.2720038,38720.0,38716.0,0.00018323]
[1646673461238,0.416201,38719.0,38716.0,0.00018323]
[1646673461440,0.4798167,38719.0,38716.0,0.00018323]
[1646673461637,1.17577,38718.0,38709.0,0.00073306]
[1646673461839,0.81267,38716.0,38708.0,0.06072088]
[1646673462038,0.3516,38715.0,38708.0,0.06072088]
[1646673462281,0.0516,38715.0,38711.0,0.15445713]
[1646673463885,0.0516,38715.0,38713.0,0.21723425]
[1646673465085,0.0516,38715.0,38711.0,0.15445713]
[1646673465687,0.064597,38721.0,38711.0,0.1547528]
[1646673465925,0.0516,38721.0,38711.0,0.1547528]
[1646673466126,0.0516,38721.0,38715.0,0.17239946]
[1646673467128,0.0516,38721.0,38717.0,0.15643194]
[1646673467330,0.1,38727.0,38720.0,0.06419398]
[1646673467529,0.1249,38738.0,38720.0,0.21419398]
[1646673467530,0.0129,38732.0,38720.0,0.21419398]
[1646673467729,0.0999,38738.0,38721.0,0.0516]
[1646673467730,0.3999,38738.0,38721.0,0.0516]
[1646673467928,0.0999,38738.0,38730.0,0.19577675]
[1646673468128,0.4998,38741.0,38730.0,0.19577675]
[1646673468331,0.23901316,38737.0,38730.0,0.19577675]
[1646673468933,0.15491193,38735.0,38718.0,0.15]
[1646673469134,0.3,38734.0,38719.0,2.03849454]
[1646673469334,0.02577,38735.0,38719.0,2.03849454]
[1646673469531,0.3,38736.0,38719.0,2.03849454]
[1646673469783,0.23901316,38737.0,38719.0,2.03849454]
[1646673469784,0.23901316,38737.0,38720.0,0.15]
[1646673469982,0.06457433,38733.0,38727.0,0.18899313]
[1646673470177,0.064574,38733.0,38727.0,0.18899313]
[1646673470378,0.0129,38740.0,38729.0,0.2247104]
[1646673470578,0.3,38742.0,38729.0,0.2247104]
[1646673470982,0.364561,38742.0,38729.0,0.2247104]
[1646673471179,0.12912089,38742.0,38734.0,0.16725426]
[1646673471380,0.25483853,38741.0,38734.0,0.16725426]
[1646673471586,0.30483853,38741.0,38734.0,0.16725426]
[1646673471780,0.05,38741.0,38734.0,0.16725426]
[1646673471984,0.0129,38745.0,38734.0,0.16725426]
[1646673472182,0.5127,38751.0,38734.0,0.16725426]
[1646673472381,0.5127,38751.0,38734.0,0.19302426]
[1646673472382,0.064548,38747.0,38734.0,0.19302426]
[1646673472582,0.064548,38747.0,38734.0,0.16725426]
[1646673472779,0.064548,38747.0,38730.0,0.15]
[1646673472780,0.20714548,38745.0,38740.0,0.32813839]
[1646673473422,0.064552,38745.0,38740.0,2.92234716]
[1646673473628,0.064552,38745.0,38740.0,0.16261601]
[1646673473824,0.064552,38745.0,38735.0,0.24275454]
[1646673474229,0.064552,38745.0,38730.0,0.316148]
[1646673474629,0.064552,38745.0,38737.0,0.20789091]
[1646673474829,0.064552,38745.0,38737.0,0.27160226]
[1646673475033,0.05,38747.0,38741.0,0.20523758]
[1646673475629,0.03796276,38748.0,38741.0,0.20523758]
[1646673477179,0.03626276,38748.0,38742.0,0.16444324]
[1646673477580,0.064548,38747.0,38742.0,0.16444324]
[1646673478083,0.114548,38747.0,38741.0,0.20523758]
[1646673478280,0.121548,38747.0,38741.0,0.20523758]
[1646673479081,0.121548,38747.0,38741.0,0.42441802]
[1646673479481,0.24364711,38747.0,38741.0,0.20523758]
[1646673479886,0.064549,38744.0,38736.0,0.0129]
[1646673480485,0.0645611,38742.0,38734.0,0.0129]
[1646673480786,0.27270618,38735.0,38732.0,0.0129]
[1646673481040,0.27270618,38735.0,38726.0,0.21045067]
[1646673481041,0.064569,38735.0,38727.0,0.0129]
[1646673481242,0.114569,38735.0,38726.0,0.21045067]
[1646673481638,0.114569,38735.0,38728.0,0.18342823]
[1646673481639,0.064569,38735.0,38728.0,0.18342823]
[1646673481845,0.05,38734.0,38728.0,0.18342823]
[1646673482239,0.27158204,38735.0,38728.0,0.18342823]
[1646673482642,0.27158204,38735.0,38721.0,0.0129]
[1646673482643,0.3,38734.0,38721.0,0.0129]
[1646673482845,0.064582,38731.0,38721.0,0.0129]
[1646673483146,0.064582,38731.0,38716.0,0.0129]
[1646673483343,0.3,38731.0,38716.0,0.0129]
[1646673483644,0.31328534,38725.0,38716.0,0.22571946]
[1646673483842,0.44246113,38725.0,38716.0,0.21281946]
[1646673484448,0.02577,38723.0,38713.0,0.00174992]
[1646673484678,0.20973754,38716.0,38714.0,0.00027481]
[1646673484877,0.05,38716.0,38714.0,0.00027481]
[1646673485176,0.7869,38715.0,38714.0,0.00027481]
[1646673485380,0.7869,38715.0,38709.0,0.00109939]
[1646673485381,0.00082443,38713.0,38709.0,0.00109939]
[1646673485578,0.00082443,38713.0,38704.0,0.001]
[1646673485579,0.81267,38711.0,38704.0,0.001]
[1646673485876,1.001525,38710.0,38707.0,0.00109935]
[1646673486276,0.95489695,38708.0,38707.0,0.00109935]
[1646673486476,0.05,38708.0,38704.0,0.001]
[1646673486775,0.064621,38707.0,38704.0,0.001]
[1646673487676,0.2,38708.0,38704.0,0.001]
[1646673487677,0.21462427,38708.0,38704.0,0.001]
[1646673487880,0.05,38708.0,38704.0,0.001]
[1646673488077,0.0516,38711.0,38704.0,0.001]
[1646673488527,0.8385,38711.0,38704.0,0.001]
[1646673488727,1.06207448,38711.0,38704.0,0.001]
[1646673488926,0.7869,38709.0,38704.0,0.001]
[1646673489126,0.364622,38710.0,38706.0,0.00018389]
[1646673489329,0.3,38709.0,38706.0,0.00018389]
[1646673489530,0.116222,38710.0,38706.0,0.00018389]
[1646673489727,0.216222,38710.0,38706.0,0.00018389]
[1646673490128,0.1516,38710.0,38704.0,0.001]
[1646673490327,0.1516,38710.0,38706.0,0.00029686]
[1646673490733,0.19120033,38710.0,38706.0,0.00029686]
[1646673490930,0.09120033,38710.0,38706.0,0.00029686]
[1646673491230,0.09120033,38710.0,38704.0,0.1682385]
[1646673491428,0.09120033,38710.0,38706.0,0.26352175]
[1646673491633,0.00082443,38713.0,38709.0,0.23484858]
[1646673491829,0.00082443,38713.0,38706.0,0.26352175]
[1646673492033,0.00082443,38713.0,38707.0,2.17332516]
[1646673492683,0.00082443,38713.0,38707.0,2.17362201]
[1646673493080,0.00082443,38713.0,38707.0,0.00029685]
[1646673493679,0.06543643,38713.0,38704.0,0.1682385]
[1646673493879,0.06543643,38713.0,38707.0,0.00028606]
[1646673494079,0.00082443,38713.0,38707.0,0.00028606]
[1646673494282,0.00082443,38713.0,38708.0,0.26390517]
[1646673494481,0.00082443,38713.0,38712.0,0.16951884]
[1646673494979,0.00082443,38713.0,38712.0,0.33023071]
[1646673496423,0.00282443,38713.0,38712.0,0.33023071]
[1646673496623,0.00282443,38713.0,38708.0,0.26390517]
[1646673496827,0.06743543,38713.0,38707.0,0.00217244]
[1646673497428,0.06743543,38713.0,38707.0,0.002]
[1646673497629,0.06461426,38712.0,38707.0,0.0002854]
[1646673498227,0.04027046,38712.0,38707.0,0.0002854]
[1646673498426,0.003,38712.0,38707.0,0.0002854]
[1646673498626,0.003,38712.0,38705.0,0.17200565]
[1646673498828,0.003,38712.0,38707.0,0.0002854]
[1646673499429,0.064617,38711.0,38707.0,0.0002854]
[1646673499876,0.064618,38710.0,38703.0,0.001]
[1646673500079,0.3,38709.0,38703.0,0.001]
[1646673500277,0.114618,38710.0,38703.0,0.001]
[1646673500278,0.2684776,38706.0,38703.0,0.001]
[1646673500878,0.05,38710.0,38703.0,0.001]
[1646673501079,0.004,38711.0,38703.0,0.001]
[1646673501280,0.004,38711.0,38703.0,0.00127669]
[1646673501486,0.004,38711.0,38709.0,0.17680651]
[1646673501684,0.00082443,38713.0,38709.0,0.17680651]
[1646673502480,0.00082443,38713.0,38707.0,0.00027668]
[1646673503280,0.06543743,38713.0,38707.0,0.00027668]
[1646673503562,0.13005143,38713.0,38706.0,0.17970294]
[1646673503759,0.05,38710.0,38707.0,0.00027667]
[1646673503960,0.3,38709.0,38707.0,0.00027667]
[1646673504164,1.32577,38706.0,38694.0,0.002]
[1646673504363,1.32577,38706.0,38698.0,0.36556709]
[1646673504364,0.21155808,38701.0,38698.0,0.36556709]
[1646673504663,0.21155808,38701.0,38697.0,0.00110697]
[1646673504664,0.7869,38698.0,38697.0,0.00110697]
[1646673504861,1.4470317,38698.0,38697.0,0.00110697]
[1646673505060,1.5470317,38698.0,38697.0,0.00110697]
[1646673505267,0.02577,38695.0,38681.0,0.002]
[1646673505464,0.17409903,38688.0,38681.0,0.002]
[1646673505661,0.8385,38687.0,38681.0,0.002]
[1646673505859,0.9385,38687.0,38681.0,0.002]
[1646673506060,1.2385,38687.0,38681.0,0.002]
[1646673506271,0.7869,38686.0,38683.0,0.0001]
[1646673506461,0.02577,38681.0,38661.0,0.03857269]
[1646673506661,0.7869,38682.0,38666.0,0.6956]
[1646673506662,0.06467088,38678.0,38666.0,0.6956]
[1646673506863,0.05,38679.0,38669.0,0.06561362]
[1646673507062,0.0516,38680.0,38664.0,0.6319]
[1646673507286,0.0516,38680.0,38671.0,0.18345253]
[1646673507892,0.1016,38680.0,38671.0,0.18345253]
[1646673508088,0.0516,38680.0,38674.0,0.21525375]
[1646673508688,0.21465916,38683.0,38674.0,0.21525375]
[1646673508891,0.21465916,38683.0,38676.0,0.27794522]
[1646673508892,0.0476,38683.0,38676.0,0.27794522]
[1646673509090,0.7869,38695.0,38676.0,2.7052563]
[1646673509091,0.0476,38691.0,38676.0,2.7052563]
[1646673509290,0.0476,38691.0,38687.0,0.17708133]
[1646673509490,0.0476,38691.0,38677.0,0.1]
[1646673509690,0.12928498,38694.0,38683.0,0.06272811]
[1646673509991,0.23699453,38695.0,38688.0,0.19333783]
[1646673510194,0.01291,38694.0,38682.0,0.00029668]
[1646673510400,0.31291,38694.0,38682.0,0.00029668]
[1646673510593,0.17352041,38693.0,38682.0,0.00029668]
[1646673510793,0.49394884,38692.0,38682.0,0.00029668]
[1646673511035,0.02577,38690.0,38672.0,0.6186]
[1646673511235,1.1869,38690.0,38686.0,0.00029666]
[1646673511440,0.7869,38689.0,38686.0,0.00029666]
[1646673511635,0.7869,38687.0,38686.0,0.00029666]
[1646673511832,1.4855463,38687.0,38686.0,0.00029666]
[1646673512031,1.5355463,38687.0,38686.0,0.00029666]
[1646673512434,1.5643163,38687.0,38680.0,0.00118683]
[1646673512631,0.7869,38685.0,38680.0,0.00118683]
[1646673512831,0.7869,38685.0,38679.0,0.00118685]
[1646673512832,1.1869,38684.0,38679.0,0.00118685]
[1646673513036,0.24055913,38683.0,38679.0,0.00118685]
[1646673513235,1.12745913,38683.0,38679.0,0.00118685]
[1646673513434,0.06466726,38681.0,38679.0,0.00118685]
[1646673513632,0.06466726,38681.0,38672.0,0.21851759]
[1646673513832,0.11466726,38681.0,38679.0,0.00025714]
[1646673514233,0.0476,38685.0,38679.0,0.00025714]
[1646673514234,0.0976,38685.0,38679.0,0.00025714]
[1646673514682,0.0476,38685.0,38674.0,0.256018]
[1646673514878,0.0476,38685.0,38680.0,0.00025713]
[1646673515081,0.05,38687.0,38680.0,0.00025713]
[1646673515280,0.05,38687.0,38679.0,0.15775278]
[1646673515281,1.1345,38691.0,38674.0,0.1]
[1646673515480,0.0646514,38689.0,38674.0,0.1]
[1646673515684,0.064654,38682.0,38674.0,0.1]
[1646673515882,0.064654,38682.0,38669.0,0.001]
[1646673516183,0.1934987,38681.0,38671.0,0.20988778]
[1646673516382,0.0646607,38680.0,38671.0,0.20988778]
[1646673516782,0.064669,38676.0,38671.0,0.20988778]
[1646673517184,0.064669,38676.0,38669.0,0.401]
[1646673517387,0.06466674,38675.0,38672.0,0.0002786]
[1646673517787,0.064669,38674.0,38672.0,0.0002786]
[1646673517986,0.064669,38674.0,38669.0,0.001]
[1646673517987,0.20811809,38671.0,38669.0,0.001]
[1646673518188,0.25811809,38671.0,38669.0,0.001]
[1646673518439,0.0005572,38671.0,38669.0,0.001]
[1646673519039,0.0005572,38671.0,38670.0,0.06425145]
[1646673519242,0.0005572,38671.0,38670.0,0.23434857]
[1646673521844,0.0005572,38671.0,38670.0,0.53434857]
[1646673523279,0.50514232,38690.0,38670.0,0.53434857]
[1646673523280,0.01291,38688.0,38677.0,0.07169587]
[1646673523481,0.50514232,38690.0,38677.0,0.07169587]
[1646673523482,0.03824232,38690.0,38677.0,0.07169587]
[1646673523677,0.03824232,38690.0,38678.0,0.3]
[1646673523877,0.10289532,38690.0,38678.0,0.3]
[1646673524077,0.10289532,38690.0,38683.0,0.16032292]
[1646673524078,0.03824232,38690.0,38683.0,0.16032292]
[1646673524478,0.01291,38695.0,38684.0,0.35979996]
[1646673524678,0.01291,38698.0,38684.0,0.3]
[1646673525177,0.01291,38698.0,38678.0,0.16507397]
[1646673525178,0.02577,38695.0,38679.0,0.3]
[1646673525377,0.26042362,38687.0,38683.0,0.010355]
[1646673525579,1.04732362,38687.0,38683.0,0.010355]
[1646673525778,1.09732362,38687.0,38683.0,0.010355]
[1646673526036,1.16198462,38687.0,38683.0,0.010355]
[1646673526234,0.064661,38686.0,38683.0,0.010355]
[1646673526632,0.364661,38686.0,38683.0,0.010355]
[1646673526834,0.364661,38686.0,38669.0,0.001]
[1646673526835,0.02577,38684.0,38669.0,0.001]
[1646673527032,1.11267,38684.0,38672.0,0.00028587]
[1646673527232,0.02577,38682.0,38672.0,0.00028587]
[1646673527434,0.32577,38682.0,38672.0,0.06582671]
[1646673527633,0.05,38682.0,38675.0,0.40922182]
[1646673527933,0.30028577,38686.0,38676.0,0.1]
[1646673528137,0.31291,38694.0,38675.0,0.20436909]
[1646673528538,0.7869,38689.0,38675.0,0.20436909]
[1646673528836,0.02577,38686.0,38675.0,0.20436909]
[1646673529035,0.06467127,38680.0,38675.0,0.20436909]
[1646673530304,0.877343,38679.0,38672.0,0.00016143]
[1646673530506,0.06468035,38677.0,38669.0,0.22978285]
[1646673530704,0.06468035,38677.0,38672.0,0.00016143]
[1646673531305,0.12935535,38677.0,38673.0,0.16397548]
[1646673531604,0.13536,38680.0,38675.0,0.2207596]
[1646673531605,0.07066981,38680.0,38675.0,0.2207596]
[1646673531805,0.06466981,38680.0,38675.0,0.2207596]
[1646673532003,0.00027672,38678.0,38675.0,0.2207596]
[1646673532204,0.00027672,38678.0,38676.0,0.06146377]
[1646673532803,0.00027672,38678.0,38676.0,0.12610677]
[1646673533442,0.004,38680.0,38676.0,0.12610677]
[1646673533639,0.00028619,38679.0,38676.0,0.35885232]
[1646673533834,0.00028619,38679.0,38676.0,0.12610677]
[1646673534135,0.31662572,38690.0,38677.0,0.15]
[1646673534136,0.03892098,38690.0,38677.0,0.15]
[1646673534339,0.03892098,38690.0,38683.0,0.15]
[1646673534537,0.51271,38699.0,38683.0,0.15]
[1646673534538,0.1998,38699.0,38687.0,0.06462129]
[1646673534740,0.1998,38699.0,38688.0,0.29555796]
[1646673534934,1.97353584,38704.0,38689.0,0.23547843]
[1646673534935,0.29330781,38700.0,38689.0,0.23547843]
[1646673535138,0.01291,38710.0,38699.0,0.1748807]
[1646673535337,0.0129,38712.0,38701.0,0.17822592]
[1646673535540,0.0129,38712.0,38702.0,0.27051568]
[1646673535739,0.00082443,38713.0,38702.0,0.1]
[1646673536034,0.00082443,38713.0,38704.0,0.27982475]
[1646673536237,0.00082443,38713.0,38708.0,0.18037887]
[1646673536434,0.00082443,38713.0,38710.0,0.18375538]
[1646673537182,0.00082443,38713.0,38711.0,0.48230182]
[1646673537183,0.00027657,38712.0,38711.0,0.48230182]
[1646673537386,0.00027657,38712.0,38711.0,0.33230182]
[1646673537581,0.00027657,38712.0,38711.0,0.15]
[1646673537783,0.00027657,38712.0,38711.0,0.1]
[1646673538083,0.011101,38715.0,38711.0,0.1]
[1646673538281,0.011101,38715.0,38712.0,0.1]
[1646673538481,0.011101,38715.0,38713.0,0.07153985]
[1646673539185,0.011101,38715.0,38714.0,0.18116779]
[1646673540586,0.011101,38715.0,38703.0,0.0476]
[1646673540785,0.064609,38714.0,38707.0,0.21706913]
[1646673541032,0.064609,38714.0,38703.0,0.0476]
[1646673541233,0.05,38719.0,38703.0,0.0476]
[1646673541549,0.0129,38728.0,38710.0,0.17577]
[1646673541732,0.1998,38730.0,38723.0,0.06451303]
[1646673541932,0.12902605,38720.0,38712.0,0.02577]
[1646673542134,0.12902605,38720.0,38719.0,0.19463488]
[1646673542436,0.4957,38736.0,38728.0,0.21291358]
[1646673542632,0.0999,38734.0,38728.0,0.21291358]
[1646673542833,0.7869,38740.0,38721.0,0.37379129]
[1646673543033,0.3,38739.0,38721.0,0.15]
[1646673543235,0.3,38739.0,38726.0,0.18796685]
[1646673543435,0.21337753,38730.0,38721.0,0.15]
[1646673543634,0.21337753,38730.0,38720.0,0.010344]
[1646673543835,0.3,38734.0,38720.0,0.010344]
[1646673544036,0.3,38737.0,38717.0,0.33380203]
[1646673544232,0.5,38737.0,38717.0,0.33380203]
[1646673544432,0.064581,38731.0,38722.0,0.06408147]
[1646673544884,0.26069824,38729.0,38722.0,0.06408147]
[1646673545383,0.26069824,38729.0,38718.0,0.31832534]
[1646673545581,0.00028602,38727.0,38718.0,0.21832534]
[1646673545982,0.00028602,38727.0,38717.0,0.28620203]
[1646673546382,0.00028602,38727.0,38719.0,0.20459873]
[1646673546586,0.26069824,38729.0,38717.0,0.18620203]
[1646673546783,0.00027661,38724.0,38717.0,0.18620203]
[1646673547584,0.00027661,38724.0,38718.0,0.064582]
[1646673547783,0.28646824,38729.0,38718.0,0.064582]
[1646673547986,0.03708406,38714.0,38713.0,0.69146608]
[1646673548188,0.03708406,38714.0,38713.0,0.0476]
[1646673548434,0.03708406,38714.0,38712.0,0.129161]
[1646673548435,0.03708406,38714.0,38707.0,0.0476]
[1646673548635,0.03708406,38714.0,38707.0,0.064598]
[1646673549036,0.03708406,38714.0,38707.0,0.129193]
[1646673549241,0.03708406,38714.0,38712.0,0.25247551]
[1646673549437,0.03736071,38714.0,38712.0,0.25247551]
[1646673549637,0.03736071,38714.0,38713.0,0.07096544]
[1646673549936,0.03736071,38714.0,38713.0,0.03174144]
[1646673550137,0.03736071,38714.0,38709.0,0.1]